Cogmind - Beta 9.4 @@@ ROGUE MODE // 2020.02.15 @ 14:28:49 Player: redd Result: Destroyed by S-10 Pest with Light Assault Rifle Performance ------------- Evolutions (0) 0 Regions Visited (2) 400 Robots Destroyed (11) 55 Value Destroyed (294) 294 Prototype IDs (0) 0 Alien Tech Used (0) 0 Bonus (0) 0 TOTAL SCORE: 749 Bonus ------- None Cogmind --------- Core Integrity 0/250 Matter 292/300 Energy 125/125 System Corruption 0% Temperature Cool (0) Movement Rolling (80) Location -10/Mines Parts ------- > --- POWER (1) -------- Light Ion Engine > --- PROPULSION (2) --- Aluminum Leg Wheel > --- UTILITY (2) ------ Structural Scanner Terrain Scanner > --- WEAPON (2) ------- Light Assault Rifle Light Assault Rifle > --- INVENTORY (4) ---- Aluminum Leg Wheel EM Pulse Gun Mining Laser Peak State ------------ > --- POWER ------------ Light Ion Engine > --- PROPULSION ------- Wheel Wheel > --- UTILITY ---------- Terrain Scanner Seismic Analyzer > --- WEAPON ----------- Beam Rifle Mining Claw > --- INVENTORY -------- Wheel EM Pulse Gun EM Pulse Gun Light Assault Rifle [Rating: 8] Favorites ----------- Power Light Ion Engine Engine Light Ion Engine Propulsion Wheel Leg Aluminum Leg Wheel Wheel Utility Seismic Analyzer Device Terrain Scanner Storage Medium Storage Unit Processor Seismic Analyzer Weapon Mining Laser Energy Gun EM Pulse Gun Ballistic Gun Light Assault Rifle Special Weapon Mining Laser Slashing Weapon Mining Claw Build | -11 -10 -10 ------- Run | Scr Mat Min Slots Evolved . | . . . Power . | . . . Propulsion . | . . . Utility . | . . . Weapon . | . . . Parts Attached 35 | 6 29 . Power 4 | 1 3 . Engine 4 | 1 3 . Core . | . . . Reactor . | . . . Propulsion 12 | 2 10 . Treads . | . . . Leg 5 | 2 3 . Wheel 7 | . 7 . Hover . | . . . Flight . | . . . Utility 7 | 1 6 . Device 3 | . 3 . Storage 3 | 1 2 . Processor 1 | . 1 . Hackware . | . . . Protection . | . . . Artifact . | . . . Weapon 12 | 2 10 . Energy Gun 4 | 1 3 . Energy Cannon . | . . . Ballistic Gun 4 | 1 3 . Ballistic Cannon . | . . . Launcher . | . . . Special Weapon 3 | . 3 . Impact Weapon . | . . . Slashing Weapon 1 | . 1 . Piercing Weapon . | . . . Special Melee Weapon . | . . . Unidentified Prototypes . | . . . Parts Lost 9 | . 9 . Power 2 | . 2 . Propulsion 2 | . 2 . Utility 1 | . 1 . Weapon 4 | . 4 . Highest Loss Streak 3 | . 3 . Average Slot Usage (%) 85 | . 84 100 Engine 8 | . 8 14 Leg 8 | . 7 14 Wheel 19 | . 19 14 Device 7 | . 6 28 Storage 2 | . 2 . Processor 10 | . 10 . Energy Gun 6 | . 6 . Ballistic Gun 6 | . 5 28 Special Weapon 9 | . 10 . Slashing Weapon 5 | . 5 . Naked Turns . | . . . Heaviest Build 22 | 10 22 7 Greatest Support 20 | 20 20 10 Greatest Overweight (x) 2 | . 2 . Average Overweight (x) . | . . . Largest Inventory Capacity 10 | 6 10 4 Average Capacity 4 | 5 4 4 Most Carried 6 | 4 6 4 Average Carried 3 | 1 3 4 Final Capacity 6 | 6 4 4 Final Carried 4 | 2 4 4 Class Distribution -------------------- 88% | Mutant 11% | Scavenger-Mutant Dominant Class ---------------- Mutant | -10/Materials Scavenger-Mutant | -10/Mines Resources | -11 -10 -10 ----------- Run | Scr Mat Min Matter Collected 533 | 234 240 59 Remotely . | . . . Salvage Created 395 | . 335 60 Parts 23 | . 22 1 Haulers Intercepted . | . . . Recyclers Shooed . | . . . Parts Field Recycled . | . . . Retrieved Matter . | . . . Parts Self-Destructed . | . . . Prevented . | . . . Kills | -11 -10 -10 ------- Run | Scr Mat Min Combat Hostiles Destroyed 9 | . 8 1 Melee 1 | . 1 . Guns 7 | . 6 1 Classes Destroyed 4 | . 4 . Builder 1 | . 1 . Watcher 1 | . 1 . Swarmer 3 | . 3 . Grunt 6 | . 5 1 Best Kill Streak 7 | . 7 1 Combat Bots Only 5 | . 5 1 Max Kills in Single Turn 1 | . 1 1 Gunslinging . | . . . Exploded . | . . . Melee 1 | . 1 . Uniques/NPCs Destroyed . | . . . Combat | -11 -10 -10 -------- Run | Scr Mat Min Damage Taken 836 | . 690 146 Core 255 | . 216 39 Absorbed by Shields . | . . . Core Remaining (%) 100 | 100 . . Volleys Fired 76 | . 63 13 Largest 2 | . 2 2 Hottest 200 | . 200 40 Shots Fired 93 | . 67 26 Gun 70 | . 44 26 Cannon . | . . . Launcher . | . . . Special 23 | . 23 . Kinetic 31 | . 5 26 Thermal 43 | . 43 . Explosive . | . . . Electromagnetic 19 | . 19 . Robot Hit Streak 13 | . 11 13 Robot Miss Streak 4 | . 4 3 Penetration Max . | . . . Secondary Targets . | . . . Shots Hit Robots 55 | . 38 17 Core Hits 20 | . 15 5 Critical Hits 1 | . . 1 Critical Kills . | . . . Critical Parts Destroyed 1 | . . 1 Melee Attacks 40 | . 40 . Impact . | . . . Slashing 40 | . 40 . Piercing . | . . . Sneak Attacks . | . . . Combat Hostiles . | . . . Follow-up Attacks . | . . . Damage Inflicted 741 | . 600 141 Guns 614 | . 473 141 Cannons . | . . . Explosions . | . . . Melee 69 | . 69 . Ramming . | . . . Kinetic 183 | . 42 141 Thermal 288 | . 288 . Explosive . | . . . Electromagnetic 201 | . 201 . Impact . | . . . Slashing 69 | . 69 . Piercing . | . . . Highest Corruption . | . . . Average Corruption . | . . . Corruption Purged . | . . . Overload Shots . | . . . Overflow Damage 8 | . 8 . Projectiles 8 | . 8 . Explosions . | . . . Melee . | . . . Knockbacks . | . . . Impact . | . . . Kinetic . | . . . Secondary . | . . . Self-Inflicted Damage . | . . . Shots . | . . . Rammed . | . . . Targets Rammed . | . . . Kicked . | . . . Crushed . | . . . Highest Temperature 106 | . 106 9 Average Temperature 35 | . 37 9 Received Heat Transfer 330 | . 267 63 Siege Activations . | . . . Robots Corrupted 1 | . 1 . Combat Hostiles 1 | . 1 . Parts Fried 1 | . 1 . Impact Corruptions . | . . . Robots Melted . | . . . Combat Hostiles . | . . . Parts Melted . | . . . Heat Transferred 767 | . 767 . Parts Sabotaged . | . . . Parts Stolen . | . . . Parts Stripped . | . . . Power Chain Reactions . | . . . Missiles Intercepted . | . . . Alert | -11 -10 -10 ------- Run | Scr Mat Min Peak Influence 189 | . 189 43 Average Influence 18 | . 17 35 Maximum Alert Level . | . . . Low Security (%) 100 | 100 100 100 Level 1 . | . . . Level 2 . | . . . Level 3 . | . . . Level 4 . | . . . Level 5 . | . . . High Security . | . . . Max Security . | . . . Squads Dispatched 5 | . 5 . Investigation 3 | . 3 . Extermination . | . . . Reinforcement 2 | . 2 . Assault . | . . . Garrison . | . . . Intercept . | . . . Construction Impeded . | . . . Haulers Reinforced . | . . . Stealth | -11 -10 -10 --------- Run | Scr Mat Min Distress Signals 4 | . 4 . Communications Jammed . | . . . Distress Signals . | . . . Times Spotted 28 | . 23 5 Peak Tracking Total 5 | . 5 3 Tactical Retreats 6 | . 4 2 Traps | -11 -10 -10 ------- Run | Scr Mat Min Traps Triggered 3 | . 3 . Indirectly . | . . . Trap Hack Attempts . | . . . Triggered . | . . . Disarmed . | . . . Reprogrammed . | . . . Reused . | . . . Traps Extracted . | . . . Installed . | . . . Triggered . | . . . Machines | -11 -10 -10 ---------- Run | Scr Mat Min Machines Disabled . | . . . Max in Single Turn . | . . . Machines Sabotaged . | . . . Garrisons Compromised . | . . . Overloaded Fab Kills . | . . . Fab Network Shutdowns . | . . . Hacking | -11 -10 -10 --------- Run | Scr Mat Min Machines Accessed 9 | . 9 . Terminals 6 | . 6 . Fabricators . | . . . Repair Stations 1 | . 1 . Recycling Units 2 | . 2 . Scanalyzers . | . . . Garrison Access . | . . . Total Hacks 33 | . 33 . Successful 23 | . 23 . Failed 10 | . 10 . Catastrophic . | . . . Database Lockouts . | . . . Manual 18 | . 18 . Terminals 24 | . 24 . Fabricators . | . . . Repair Stations 3 | . 3 . Recycling Units 6 | . 6 . Scanalyzers . | . . . Garrison Access . | . . . Terminal Hacks 5 | . 5 . Terminal Index 1 | . 1 . Alert Level 2 | . 2 . Unreport Threat 1 | . 1 . Zone Layout 1 | . 1 . Fabricator Hacks . | . . . Repair Station Hacks 2 | . 2 . Scan Component 1 | . 1 . Repair 1 | . 1 . Recycling Unit Hacks 4 | . 4 . Report Inventory 3 | . 3 . Retrieve Components 1 | . 1 . Scanalyzer . | . . . Garrison Access Hacks . | . . . Unauthorized Hacks 27 | . 27 . Terminals 12 | . 12 . Track 6 | . 6 . Botnet 6 | . 6 . Fabricators . | . . . Repair Stations . | . . . Recycling Units . | . . . Scanalyzers . | . . . Garrison Access . | . . . Data Cores Recovered . | . . . Used . | . . . Hacking Detections 8 | . 8 . Full Trace Events 4 | . 4 . Feedback Events . | . . . Feedback Blocked . | . . . Robot Schematics Acquired . | . . . Robots Built . | . . . Matter . | . . . Time . | . . . Total Robot Build Rating . | . . . Part Schematics Acquired . | . . . Parts Built . | . . . Matter . | . . . Time . | . . . Total Part Build Rating . | . . . Parts Repaired 1 | . 1 . Time 26 | . 26 . Parts Recycled . | . . . Recycled Matter . | . . . Retrieved Matter . | . . . Retrieved Components 9 | . 9 . Parts Scanalyzed . | . . . Part Schematics Acquired . | . . . Parts Damaged . | . . . Bothacking | -11 -10 -10 ------------ Run | Scr Mat Min Used RIF Installer . | . . . Robots Hacked . | . . . Non-combat . | . . . Combat . | . . . Robot Hacks Applied . | . . . Relay Couplers Released . | . . . Robots Rewired . | . . . Allies Hacked . | . . . Hacks Repelled . | . . . Allies | -11 -10 -10 -------- Run | Scr Mat Min Total Allies . | . . . Largest Group . | . . . Highest-Rated Group . | . . . Highest-Rated Ally . | . . . Total Orders . | . . . Ally Attacks . | . . . Total Damage . | . . . Kills . | . . . Allies Corrupted . | . . . Allies Melted . | . . . Intel | -11 -10 -10 ------- Run | Scr Mat Min Robot Analysis Total . | . . . Derelict Logs Recovered . | . . . Drone Launches . | . . . Drone Recoveries . | . . . Exploration | -11 -10 -10 ------------- Run | Scr Mat Min Turns Passed 2165 | 60 1983 122 Spaces Moved 1015 | 42 890 83 Core 9 | 7 2 . Treads . | . . . Legs 235 | 35 200 . Wheels 771 | . 688 83 Hover . | . . . Flight . | . . . Fastest Speed 50 | 50 80 80 Average Speed 89 | 108 89 80 Slowest Speed 150 | 120 150 80 Overloaded Moves . | . . . Propulsion Burnouts . | . . . Robots Hopped . | . . . Cave-ins Triggered . | . . . Exploration Rate (%) 39 | 3 93 22 Regions Visited 2 Branch Regions 1 Pre-discovered Areas . | . . . Known Exits Taken . | . . . Unknown Exits Taken 2 | 1 1 . Scrap Searched . | . . . Spaces Dug 47 | . 47 . Terrain Destroyed 47 | . 47 . Melee 29 | . 29 . Projectile 18 | . 18 . AOE . | . . . Actions | -11 -10 -10 --------- Run | Scr Mat Min Total 2063 | 56 1889 118 Wait 860 | 1 837 22 Move 1013 | 41 889 83 Hop . | . . . Pick Up 25 | 8 17 . Fast Attach 7 | . 7 . Attach 15 | 6 9 . Detach 1 | . 1 . Swap 13 | . 13 . Drop 13 | . 13 . Fire 76 | . 63 13 Melee 40 | . 40 . Ram . | . . . Kick . | . . . Crush . | . . . Escape Stasis . | . . . Rewire . | . . . Trap . | . . . Miscellaneous . | . . . Route ------- -11/Scrapyard -10/Materials (discovered 4 exits: [*Mat x3] / [*Min]) -10/Mines History --------- Turn | Location | Event 18 | -11/Scrapyard | Discovered new exit (range 15) 61 | -11/Scrapyard | Entered Materials 318 | -10/Materials | Build established: Mutant 614 | -10/Materials | Discovered new exit (range 12) 1009 | -10/Materials | Core integrity fell below 50% 1035 | -10/Materials | Lost 3 parts (1n1u1w) 1071 | -10/Materials | Repaired Wheel 1088 | -10/Materials | Discovered new exit (range 3) 1198 | -10/Materials | Discovered new exit (range 8) 1199 | -10/Materials | Core integrity fell below 20% 1615 | -10/Materials | Discovered new exit (range 16) 2044 | -10/Materials | Entered Mines 2166 | -10/Mines | Destroyed by S-10 Pest with Light Assault Rifle Last Messages --------------- 02029_ Connecting with Terminal... >>Trojan(Botnet) Trojan loaded successfully. Testing... Terminal linked with 4 systems. Awaiting botnet instructions. >>Trojan(Track) Trojan loaded successfully. Testing... Tracking enabled and active. 02029_ ALERT: Suspicious activity at Terminal M003. Dispatching Investigation squad. LOCATION=UNKNOWN GOAL=ESCAPE Something is scanning the area. 02060_ G-47 Trooper suffers critical hit. 02060_ Destroyed Aluminum Leg. 02071_ Destroyed Particle Gun. 02073_ G-47 Trooper destroyed. 02078_ Acquired 59 matter. Map ----- +----------------------------------------------------+ | ???????????????????????????# """ ##??######## #?? | | ???????????????????????????# #????####### #?? | | ??????????????????????????#########????# #?? | | ????????????????"?????????#????######### #######?? | | ???????????????????????????????# #???????? | | ???????????????????????????????# ####### #??#????? | | ??????????????????????????????## ####### #???????? | | ?????????????????????????????## ## #???????? | | ???????????????????? ???###### #???????# | | ????????????????????????# ##???????? | | ????????????????????????# ##### """ #???#????? | | ????????????????????????# #?#?## """ #????????? | | ???????????????????#??#?# #????## """ #???????? | | ????????????????????????# #?????# #???????? | | ???????????????????#????# #??????# ### ?#???????? | | ????????????????????#???# ##?????# ### ?????????? | | ????????????????????????# #??????# #?# ?????????? | | ???????????????????#????# #??????# #?#??????????? | | ????????????????????????# #?????#? #????????????? | | ????????????????????????# #??????? #????????????? | | ????????????????????????# #???????? ????????????? | | ????????????????????????# #??????????????????????? | | ????????????????????????# #?????????#????????????? | | ????????????????????????# #??????????????????????? | | ??????????????#?????????# #??????????????????????? | | ????????????????????????#@#??????????????????????? | | ????????????????????????# #??????????????????????? | | ???????????????????? ???# #?????????? ???????????? | | ????????????????# ###s########???????????????? | | ??????????????# ????????? | | ?????????? ????????? | | ?????????????# ############### ????????? | | ?????????????## ## ????????????????????????????? | | ??????????????????##???#?????????????????????????? | | ?????????????????????????????????????????????????? | | ?????????????????????????????????????????????????? | | | | | | | | | | | | | | | | | | | | | | | | | | | | | +----------------------------------------------------+ Best States ------------- Heat Dissipation 25 Energy Generation 10 Energy Capacity 250 Matter Stores 300 Matter Capacity 300 Sight Range 16 Terrain Scan Range 14 Terrain Scan Density 60 Evasion (%) 44 Item Schematics ----------------- None Robot Schematics ------------------ None Fabricated ------------ Nothing Alien Tech Used ----------------- None Achievements -------------- None Challenges ------------ None Game ------ Seed ImprovedHardenedImmobilizer Manual? 0 Play Time 00:45:51 Cumulative 31.7 hours Start 2020.02.15 @ 13:29:41 End 2020.02.15 @ 14:28:49 Sessions 1 Manual Loads 0 Difficulty Rogue Special Mode None Game No. 21 Rogue 21 Adventurer 0 Explorer 0 Win Type - Total 0 Types 0/0/0/0/0/0/0 Lore% 20 Gallery% 15 Achievement% 14 Wizard Run 0 Options --------- ASCII 1 Keyboard 0 Movement Mouse Keybinds 0 Fullscreen 2 Font 20/Terminus Map View 66x50 Tactical HUD 1 Map Filters NONE Filters NONE Steam 1 RUN: fc5945f7-3182-4979-af34-840f2cf72386